bitfinex/quotes_ETHUSD_20240710
["timestamp","ask_amount","ask_price","bid_price","bid_amount"]
[1720655566289,0.07377725,3108.8,3108.3,1.12029343]
[1720655566495,0.07377725,3108.8,3108.2,0.836]
[1720655566695,0.07377725,3108.8,3108.3,1.12029296]
[1720655566993,0.07377725,3108.8,3108.2,0.836]
[1720655567161,0.07377725,3108.8,3108.3,2.80067943]
[1720655567355,0.07377725,3108.8,3108.2,0.836]
[1720655567595,0.07377725,3108.8,3108.3,2.80068003]
[1720655567783,0.07377725,3108.8,3108.2,0.836]
[1720655567987,0.07377725,3108.8,3108.3,1.12028743]
[1720655568171,0.07377725,3108.8,3108.2,0.836]
[1720655568373,0.07377725,3108.8,3108.3,1.12028806]
[1720655568576,0.31602498,3108.8,3108.2,0.836]
[1720655569282,0.31602498,3108.8,3108.0,0.67393609]
[1720655569484,0.31602498,3108.8,3108.1,1.12033143]
[1720655569685,2.3063,3108.7,3107.9,1.50993609]
[1720655569888,2.3063,3108.7,3108.0,2.80090095]
[1720655570070,2.3063,3108.7,3108.1,1.12036038]
[1720655570269,2.3063,3108.7,3107.9,1.50993609]
[1720655570605,2.3063,3108.7,3108.0,2.8008646]
[1720655570777,2.3063,3108.7,3108.1,1.12034584]
[1720655571097,0.06866474,3108.6,3107.9,1.50993609]
[1720655571277,0.06866474,3108.6,3108.0,2.80087263]
[1720655571480,2.53693,3108.7,3108.1,1.12034905]
[1720655571800,0.06832485,3108.6,3107.9,1.50993609]
[1720655572099,2.53693,3108.7,3108.0,2.80086651]
[1720655572393,0.06593387,3108.6,3108.1,2.80084093]
[1720655572609,0.06593387,3108.6,3107.9,1.50993609]
[1720655572766,2.53693,3108.7,3108.0,2.80079932]
[1720655572959,0.06623197,3108.6,3108.1,2.80079932]
[1720655573166,0.06623197,3108.6,3107.9,1.50993609]
[1720655573396,2.53693,3108.7,3108.0,2.80081683]
[1720655573576,0.06588423,3108.6,3108.1,2.80081683]
[1720655573800,0.06588423,3108.6,3107.9,1.50993609]
[1720655573978,2.53693,3108.7,3108.0,2.8007817]
[1720655574309,0.06619269,3108.6,3108.1,2.8007817]
[1720655574514,0.06619269,3108.6,3107.9,1.99110011]
[1720655574672,2.3063,3108.7,3108.0,2.80077843]
[1720655574870,2.3063,3108.7,3108.1,2.80077843]
[1720655575197,0.06619269,3108.6,3108.2,1.12027943]
[1720655575369,0.06619269,3108.6,3108.0,0.67393609]
[1720655575565,0.06619269,3108.6,3108.1,2.80070373]
[1720655575788,2.3063,3108.7,3108.2,1.12028149]
[1720655576110,2.3063,3108.7,3108.0,0.67393609]
[1720655576111,0.06592992,3108.6,3108.0,0.67393609]
[1720655576270,0.06592992,3108.6,3108.1,3.63668202]
[1720655576472,0.06592992,3108.6,3108.2,1.12027281]
[1720655576679,2.3063,3108.7,3108.1,0.836]
[1720655576892,0.06592092,3108.5,3108.2,1.12026916]
[1720655577081,0.06620516,3108.6,3108.1,0.836]
[1720655577410,2.3063,3108.7,3108.2,1.12026938]
[1720655577411,0.06592092,3108.5,3108.2,1.12026938]
[1720655577723,2.3063,3108.7,3108.1,0.836]
[1720655577881,0.06613304,3108.4,3108.2,2.80063061]
[1720655578081,2.3063,3108.7,3108.1,0.836]
[1720655578287,0.06609698,3108.3,3108.2,2.8006304]
[1720655578469,2.3063,3108.7,3108.2,1.12025216]
[1720655578669,0.06609698,3108.3,3108.1,0.836]
[1720655578913,2.3063,3108.7,3108.2,1.12025999]
[1720655579075,2.53693,3108.7,3108.0,0.67393609]
[1720655579417,2.53693,3108.7,3108.1,2.80063427]
[1720655579610,2.53693,3108.7,3108.2,1.12025371]
[1720655579806,2.53693,3108.7,3108.0,1.50993609]
[1720655580015,2.3063,3108.7,3108.1,2.8006589]
[1720655580322,2.3063,3108.7,3108.2,1.95626356]
[1720655580527,2.3063,3108.7,3108.2,0.836]
[1720655580704,2.3063,3108.7,3108.3,2.8005675]
[1720655580921,2.3063,3108.7,3108.2,0.836]
[1720655581110,2.3063,3108.7,3108.3,1.12025408]
[1720655581323,2.3063,3108.7,3108.2,0.836]
[1720655581499,2.3063,3108.7,3108.3,2.80058842]
[1720655581827,2.3063,3108.7,3108.2,0.836]
[1720655581986,2.3063,3108.7,3108.3,2.8005701]
[1720655582321,2.3063,3108.7,3108.2,0.836]
[1720655582529,2.3063,3108.7,3108.3,2.80056868]
[1720655582749,2.3063,3108.7,3108.4,1.12023018]
[1720655582913,2.3063,3108.7,3108.2,1.50993609]
[1720655583219,2.3063,3108.7,3108.2,0.836]
[1720655583446,2.3063,3108.7,3108.3,1.12023627]
[1720655583599,2.3063,3108.7,3108.2,1.50993609]
[1720655583799,0.06600336,3108.6,3108.3,2.80060915]
[1720655584000,2.3063,3108.7,3108.2,1.50993609]
[1720655584203,0.06600336,3108.6,3108.3,2.8006114]
[1720655584391,2.3063,3108.7,3108.2,1.50993609]
[1720655584710,0.06600336,3108.6,3108.3,2.80061088]
[1720655584909,0.06600336,3108.6,3108.2,1.50993609]
[1720655584910,0.06600336,3108.6,3108.2,0.836]
[1720655585124,2.3063,3108.7,3108.3,2.8006094]
[1720655585304,2.3063,3108.7,3108.2,0.836]
[1720655585489,0.06597841,3108.6,3108.3,2.80064063]
[1720655585828,2.3063,3108.7,3108.1,0.67393609]
[1720655586028,0.06597841,3108.6,3108.2,2.8006555]
[1720655586184,0.06597841,3108.6,3108.3,1.1202622]
[1720655586385,0.06597841,3108.6,3108.1,0.67393609]
[1720655586829,0.06597841,3108.6,3108.2,2.80068781]
[1720655587014,0.06597841,3108.6,3108.3,1.12027512]
[1720655587330,0.06597841,3108.6,3108.1,0.67393609]
[1720655587494,0.06597841,3108.6,3108.2,2.80069573]
[1720655587694,0.06597841,3108.6,3108.3,1.12027829]
[1720655587906,0.06597841,3108.6,3108.1,0.67393609]
[1720655588129,0.06597841,3108.6,3108.2,2.80069035]
[1720655588333,0.06597841,3108.6,3108.3,1.12027614]
[1720655588496,0.06597841,3108.6,3108.1,0.67393609]
[1720655588830,0.06597841,3108.6,3108.2,2.80069928]
[1720655589027,0.06597841,3108.6,3108.3,1.12027971]
[1720655589233,0.06597841,3108.6,3108.1,0.67393609]
[1720655589429,0.06597841,3108.6,3108.2,2.80069788]
[1720655589598,0.06597841,3108.6,3108.3,1.12027915]
[1720655589931,0.06597841,3108.6,3108.1,0.67393609]
[1720655590306,0.06597841,3108.6,3108.2,2.80069972]
[1720655590503,0.06597841,3108.6,3108.3,1.12027989]
[1720655590814,0.06597841,3108.6,3108.4,1.1202552]
[1720655591132,0.06597841,3108.6,3108.2,1.50993609]
[1720655591315,0.06597841,3108.6,3108.3,2.80063335]
[1720655591628,0.06597841,3108.6,3108.4,1.12025334]
[1720655591829,0.06597841,3108.6,3108.2,1.50993609]
[1720655591998,2.3063,3108.7,3108.3,2.80062092]
[1720655592198,0.06202537,3108.6,3108.4,1.12024837]
[1720655592399,2.3063,3108.7,3108.2,1.50993609]
[1720655592599,0.06202537,3108.6,3108.3,2.80064896]
[1720655592919,2.3063,3108.7,3108.4,1.12025958]
[1720655593227,0.06176345,3108.6,3108.2,1.50993609]
[1720655593527,0.33603004,3108.6,3108.2,1.50993609]
[1720655593832,0.33603004,3108.6,3108.3,2.80063788]
[1720655594127,0.33603004,3108.6,3108.4,1.12025515]
[1720655594332,0.33603004,3108.6,3108.2,1.50993609]
[1720655594631,0.33603004,3108.6,3108.3,2.80059748]
[1720655594828,0.33603004,3108.6,3108.2,1.50993609]
[1720655594829,0.33603004,3108.6,3108.4,2.80059748]
[1720655595126,0.33603004,3108.6,3108.2,1.50993609]
[1720655595427,0.33603004,3108.6,3108.3,2.80059661]
[1720655595626,0.33603004,3108.6,3108.2,1.50993609]
[1720655595627,0.33603004,3108.6,3108.4,2.80059661]
[1720655595933,0.33603004,3108.6,3108.2,3.87753609]
[1720655596129,0.33603004,3108.6,3108.3,3.28945514]
[1720655596341,0.06176477,3108.5,3108.4,2.80061112]
[1720655596896,0.06176477,3108.5,3108.4,3.63661112]
[1720655597096,0.06176477,3108.5,3108.4,3.63659011]
[1720655597313,0.33603004,3108.6,3108.4,3.63659011]
[1720655597511,0.06169215,3108.5,3108.4,0.836]
[1720655597719,0.06169215,3108.5,3108.4,3.63651265]
[1720655598635,0.33603004,3108.6,3108.4,3.63651265]
[1720655598832,2.63013004,3108.6,3108.5,1.12020506]
[1720655598998,2.63013004,3108.6,3108.2,1.50993609]
[1720655599198,2.63013004,3108.6,3108.3,2.8005605]
[1720655599455,2.63013004,3108.6,3108.2,1.50993609]
[1720655599456,2.63013004,3108.6,3108.4,2.8005605]
[1720655599738,2.63013004,3108.6,3108.2,1.50993609]
[1720655599933,0.33603004,3108.6,3108.3,2.80056105]
[1720655600235,0.33603004,3108.6,3108.4,2.80056105]
[1720655600411,0.33603004,3108.6,3108.3,0.67393609]
[1720655600607,0.33603004,3108.6,3108.4,2.80057133]
[1720655600939,0.33603004,3108.6,3108.5,1.12022853]
[1720655601800,0.33603004,3108.6,3108.5,2.8005524]
[1720655602332,0.33603004,3108.6,3108.4,1.50993609]
[1720655602495,0.33603004,3108.6,3108.5,2.8004912]
[1720655604021,0.33603004,3108.6,3108.4,1.50993609]
[1720655604224,0.33603004,3108.6,3108.5,2.80051251]
[1720655604545,0.33603004,3108.6,3108.5,3.23155737]
[1720655607629,0.33603004,3108.6,3108.5,3.23150578]
[1720655611059,0.33603004,3108.6,3108.5,3.23150266]
[1720655611374,0.33603004,3108.6,3108.5,2.8004578]
[1720655612830,2.60593004,3108.6,3108.5,2.8004578]
[1720655613081,2.66735736,3108.6,3108.2,0.67393609]
[1720655613371,2.66735736,3108.6,3108.3,2.80065717]
[1720655613576,2.66735736,3108.6,3108.4,1.12026287]
[1720655613882,2.66735736,3108.6,3108.2,0.67393609]
[1720655614031,2.66735736,3108.6,3108.3,2.80063481]
[1720655614231,2.66735736,3108.6,3108.4,1.12025392]
[1720655614497,2.66735736,3108.6,3108.0,0.836]
[1720655614771,2.66735736,3108.6,3108.2,0.67582651]
[1720655614932,2.60593004,3108.6,3108.3,2.80060451]
[1720655615132,2.60593004,3108.6,3108.4,1.1202418]
[1720655615333,0.06135592,3108.5,3108.2,0.67582651]
[1720655615558,0.06135592,3108.5,3108.3,2.80060897]
[1720655615777,2.60593004,3108.6,3108.4,1.12024359]
[1720655615954,2.60593004,3108.6,3108.2,0.67582651]
[1720655616153,2.60593004,3108.6,3108.3,2.80065658]
[1720655616478,2.60593004,3108.6,3108.4,1.12026263]
[1720655616663,2.60593004,3108.6,3108.2,0.67582651]
[1720655616840,2.60593004,3108.6,3108.3,2.80065557]
[1720655617040,2.60593004,3108.6,3108.4,1.12026223]
[1720655617243,2.60593004,3108.6,3108.2,0.67582651]
[1720655617441,2.60593004,3108.6,3108.3,2.80066403]
[1720655617636,2.60593004,3108.6,3108.4,2.80066403]
[1720655617868,2.60593004,3108.6,3108.3,0.67582651]
[1720655618049,2.60593004,3108.6,3108.4,2.80060672]
[1720655618277,2.60593004,3108.6,3108.5,1.12023205]
[1720655620755,2.60593004,3108.6,3108.2,0.67582651]
[1720655620955,2.60593004,3108.6,3108.3,2.8006802]
[1720655621192,2.60593004,3108.6,3108.4,1.12027208]
[1720655621396,0.0614992,3108.5,3108.2,0.67582651]
[1720655621695,0.0614992,3108.5,3108.3,2.80078763]
[1720655622026,0.0614992,3108.5,3108.1,0.67582651]
[1720655622158,0.0614992,3108.5,3108.2,2.8008276]
[1720655622355,0.0614992,3108.5,3108.3,2.80081733]
[1720655622558,2.60593004,3108.6,3108.1,1.51182651]
[1720655622775,2.60593004,3108.6,3108.2,2.80080083]
[1720655622776,0.0611471,3108.4,3108.2,2.80080083]
[1720655622979,2.60593004,3108.6,3108.3,2.80080083]
[1720655623164,2.60593004,3108.6,3108.1,1.51182651]
[1720655623385,2.60593004,3108.6,3108.2,2.80079877]
[1720655623700,2.60593004,3108.6,3108.3,2.80079877]
[1720655623873,2.60593004,3108.6,3108.1,1.51182651]
[1720655624072,2.60593004,3108.6,3108.2,2.80079803]
[1720655624279,2.60593004,3108.6,3108.3,2.80079803]
[1720655624460,2.60593004,3108.6,3108.1,1.51182651]
[1720655624661,2.60593004,3108.6,3108.2,2.80079953]
[1720655624861,2.60593004,3108.6,3108.1,1.51182651]
[1720655625063,2.60593004,3108.6,3108.2,2.80079828]
[1720655625305,2.60593004,3108.6,3108.3,2.80079828]
[1720655625609,2.60593004,3108.6,3108.1,1.51182651]
[1720655625804,2.60593004,3108.6,3108.2,2.8008062]
[1720655626009,2.60593004,3108.6,3108.3,1.12032248]
[1720655626213,2.60593004,3108.6,3108.1,1.51182651]
[1720655626500,2.60593004,3108.6,3108.2,2.80078993]
[1720655626711,2.60593004,3108.6,3108.3,1.12031597]
[1720655627021,2.60593004,3108.6,3108.1,1.51182651]
[1720655627304,2.60593004,3108.6,3108.2,2.80078248]
[1720655627507,2.60593004,3108.6,3108.3,1.12031299]
[1720655627675,2.60593004,3108.6,3108.1,1.51182651]
[1720655628012,2.60593004,3108.6,3108.2,2.80078458]
[1720655628314,2.60593004,3108.6,3108.3,1.12031383]
[1720655628519,2.60593004,3108.6,3108.1,1.51182651]
[1720655628694,2.60593004,3108.6,3108.2,2.80080861]
[1720655629020,2.60593004,3108.6,3108.3,1.1203325]
[1720655629228,2.60593004,3108.6,3108.1,1.51182651]
[1720655629397,2.60593004,3108.6,3108.2,2.80081217]
[1720655629593,2.60593004,3108.6,3108.1,1.51182651]
[1720655629797,2.60593004,3108.6,3108.2,2.80081098]
[1720655629982,2.60593004,3108.6,3108.0,0.67582651]
[1720655630185,2.60593004,3108.6,3108.1,2.80083248]
[1720655630481,2.60593004,3108.6,3108.2,1.12033299]
[1720655630821,2.60593004,3108.6,3108.0,0.67582651]
[1720655631023,2.60593004,3108.6,3108.1,2.80083113]
[1720655631319,2.60593004,3108.6,3108.2,1.12033245]
[1720655631527,2.60593004,3108.6,3108.0,0.67582651]
[1720655631686,2.60593004,3108.6,3108.1,2.80083193]
[1720655631886,2.60593004,3108.6,3108.0,0.67582651]
[1720655631887,2.60593004,3108.6,3108.2,1.12033219]
[1720655632087,2.60593004,3108.6,3108.0,0.67582651]
[1720655632310,2.60593004,3108.6,3108.1,2.80083768]
[1720655632486,2.60593004,3108.6,3108.2,1.12033507]
[1720655632690,2.60593004,3108.6,3108.0,0.67582651]
[1720655632929,2.60593004,3108.6,3108.1,2.80083206]
[1720655633114,2.60593004,3108.6,3108.2,1.12033282]
[1720655633296,2.60593004,3108.6,3108.0,0.67582651]
[1720655633506,2.60593004,3108.6,3108.1,2.80084998]
[1720655633702,2.60593004,3108.6,3108.2,1.12033999]
[1720655633903,2.60593004,3108.6,3108.0,0.67582651]
[1720655634118,2.60593004,3108.6,3108.1,2.80083255]
[1720655634286,2.60593004,3108.6,3108.2,1.12033302]
[1720655634489,2.60593004,3108.6,3108.0,0.67582651]
[1720655634689,2.60593004,3108.6,3108.1,2.80084996]
[1720655634915,2.60593004,3108.6,3108.2,1.12033998]
[1720655635233,2.60593004,3108.6,3108.0,0.67582651]
[1720655635234,2.2699,3108.6,3108.0,0.67582651]
[1720655635535,0.05696962,3108.5,3108.1,2.80085018]
[1720655635745,0.05696962,3108.5,3108.2,1.12034007]
[1720655636039,0.05693356,3108.4,3108.0,0.6757739]
[1720655636208,2.2699,3108.6,3108.1,2.80085056]
[1720655636539,2.2699,3108.6,3108.2,1.12034022]
[1720655636843,0.05699204,3108.5,3108.0,0.6757739]
[1720655636993,2.2699,3108.6,3108.1,2.80083492]
[1720655637318,2.2699,3108.6,3108.0,0.6757739]
[1720655637513,2.49689,3108.6,3108.1,2.80085001]
[1720655637717,2.49689,3108.6,3107.9,1.5117739]
[1720655637920,2.49689,3108.6,3108.0,3.35085475]
[1720655638120,2.49689,3108.6,3108.1,2.80085475]
[1720655638429,2.49689,3108.6,3108.0,0.55]
[1720655638634,0.30670346,3108.5,3108.1,2.80085336]
[1720655638817,0.30670346,3108.5,3107.8,1.01366085]
[1720655638818,2.4069,3108.4,3107.8,0.6757739]
[1720655639133,2.4069,3108.4,3107.9,1.67043023]
[1720655639344,0.05655898,3108.3,3107.9,0.55]
[1720655639635,0.05655898,3108.3,3107.8,0.55]
[1720655639931,0.05655898,3108.3,3107.9,2.80108402]
[1720655640138,0.05655898,3108.3,3107.8,0.55]
[1720655640437,2.4069,3108.4,3107.9,2.80104912]
[1720655640647,0.05652291,3108.2,3108.0,2.80098102]
[1720655640849,2.4069,3108.4,3108.1,1.12041965]
[1720655641011,0.05693198,3108.3,3107.9,1.9980562]
[1720655641211,0.05693198,3108.3,3108.0,2.80092165]
[1720655641432,0.05693198,3108.3,3107.9,1.9980562]
[1720655641433,0.05693198,3108.3,3108.1,1.12036028]
[1720655641753,0.05693198,3108.3,3108.1,0.836]
[1720655642057,2.3737,3108.8,3108.2,2.80072469]
[1720655642207,0.05677814,3108.7,3108.3,1.120315]
[1720655642403,2.3737,3108.8,3108.1,0.836]
[1720655642643,0.05677814,3108.7,3108.2,2.80075552]
[1720655642852,0.05677814,3108.7,3108.1,0.836]
[1720655643010,0.05677814,3108.7,3108.2,2.80073426]
[1720655643211,0.05677814,3108.7,3108.1,0.836]
[1720655643530,0.05677814,3108.7,3108.2,2.80073388]
[1720655643738,0.05677814,3108.7,3108.1,1.51134901]
[1720655644051,0.05677814,3108.7,3108.2,2.80071806]
[1720655644219,0.05677814,3108.7,3108.1,0.836]
[1720655644430,0.05677814,3108.7,3108.3,0.836]
[1720655644941,7.44,3108.9,3108.3,0.836]
[1720655645107,0.05677417,3108.6,3108.3,0.836]
[1720655645309,7.44,3108.9,3108.1,1.5113118]
[1720655645612,2.3121,3108.6,3108.2,1.12025551]
[1720655645813,0.05672436,3108.5,3108.0,3.1127118]
[1720655646062,0.05672436,3108.5,3108.1,3.35073985]
[1720655646211,0.05672436,3108.5,3108.2,1.12029594]
[1720655646412,0.05672436,3108.5,3108.1,0.55]
[1720655646714,0.05672436,3108.5,3107.9,0.6753118]
[1720655646715,0.2936068,3108.5,3107.9,0.6753118]
[1720655646929,0.2936068,3108.5,3108.0,2.80095535]
[1720655647167,0.2936068,3108.5,3108.1,1.12036466]
[1720655647315,0.05672436,3108.5,3107.9,0.6753118]
[1720655647648,0.05672436,3108.5,3108.0,2.8008836]
[1720655647949,0.05672436,3108.5,3108.1,1.12036456]
[1720655648148,0.05672436,3108.5,3107.9,0.6753118]
[1720655648358,0.05672436,3108.5,3108.0,2.80088703]
[1720655648557,0.05672436,3108.5,3108.1,1.12036098]
[1720655648767,0.05672436,3108.5,3107.9,0.6753118]
[1720655648932,0.05672436,3108.5,3108.0,2.80087522]
[1720655649119,0.05672436,3108.5,3108.1,1.12035009]
[1720655649324,0.05672436,3108.5,3107.9,0.6753118]
[1720655649524,0.05672436,3108.5,3108.0,2.800897]
[1720655649718,0.05672436,3108.5,3108.1,1.1203588]
[1720655649926,0.05672436,3108.5,3107.9,0.6753118]
[1720655650222,0.05672436,3108.5,3108.0,2.80089641]
[1720655650422,0.05672436,3108.5,3108.1,1.12035673]
[1720655650646,0.05672436,3108.5,3107.8,1.5113118]
[1720655650863,0.05672436,3108.5,3107.9,3.35092756]
[1720655651072,0.05672436,3108.5,3108.0,1.12037102]
[1720655651356,0.05672436,3108.5,3107.9,0.55]
[1720655651563,0.05672436,3108.5,3108.0,2.80092545]
[1720655651862,0.05672436,3108.5,3108.1,1.12035048]
[1720655652068,0.05672436,3108.5,3107.9,1.2253118]
[1720655652259,0.05672436,3108.5,3108.0,2.80087987]
[1720655652457,0.05672436,3108.5,3108.1,1.12035195]
[1720655652662,0.05672436,3108.5,3107.9,1.2253118]
[1720655652861,0.05672436,3108.5,3108.0,2.80091073]
[1720655653065,0.05672436,3108.5,3107.9,1.2253118]
[1720655653219,0.05672436,3108.5,3108.0,2.80091811]
[1720655653428,0.05672436,3108.5,3108.1,1.12036006]
[1720655653638,0.05672436,3108.5,3107.9,1.2253118]
[1720655653866,0.05672436,3108.5,3108.0,2.80092862]
[1720655654050,0.05672436,3108.5,3108.1,1.12037412]
[1720655654231,0.05672436,3108.5,3107.9,1.2253118]
[1720655654431,0.05672436,3108.5,3108.0,2.80091608]
[1720655654630,0.05672436,3108.5,3108.1,1.12036643]
[1720655654962,0.05672436,3108.5,3107.9,1.2253118]
[1720655655171,0.05672436,3108.5,3108.0,2.80091625]
[1720655655329,0.05672436,3108.5,3108.1,1.1203665]
[1720655655531,0.05672436,3108.5,3107.9,1.2253118]
[1720655655751,0.05672436,3108.5,3108.0,2.80091615]
[1720655655956,0.05672436,3108.5,3108.1,1.12036646]
[1720655656171,0.05672436,3108.5,3107.9,1.2253118]
[1720655656464,0.05672436,3108.5,3108.0,2.8009068]
[1720655656668,0.05672436,3108.5,3108.1,2.80090677]
[1720655656880,0.05672436,3108.5,3107.9,1.2253118]
[1720655657049,0.05672436,3108.5,3108.0,2.80091536]
[1720655657380,0.05672436,3108.5,3108.1,1.12036614]
[1720655657663,0.05672436,3108.5,3107.9,1.2253118]
[1720655657871,0.05672436,3108.5,3108.0,2.80093177]
[1720655658030,0.05672436,3108.5,3108.1,2.80093177]
[1720655658227,0.05672436,3108.5,3108.2,1.12037271]
[1720655658457,0.05672436,3108.5,3108.0,0.6753118]
[1720655658866,0.05672436,3108.5,3108.1,2.80089427]
[1720655659068,0.05672436,3108.5,3108.2,1.12035771]
[1720655659273,0.05672436,3108.5,3108.0,0.6753118]
[1720655659481,0.05672436,3108.5,3108.1,5.51203535]
[1720655659661,0.05672436,3108.5,3108.4,0.836]
[1720655659858,7.44,3108.9,3108.4,4.8621764]
[1720655660037,7.44,3108.9,3108.5,2.8008646]
[1720655660038,0.05700709,3108.8,3108.5,2.8008646]
[1720655660233,0.05700709,3108.8,3108.6,1.12034584]
[1720655660478,0.05700709,3108.8,3108.4,0.836]
[1720655660773,0.05700709,3108.8,3108.5,1.1202095]
[1720655660977,0.05700709,3108.8,3108.4,0.836]
[1720655661275,0.05700709,3108.8,3108.5,2.80050322]
[1720655661492,0.05700709,3108.8,3108.6,1.12020129]
[1720655661775,0.05700709,3108.8,3108.4,1.77017357]
[1720655662070,0.05700709,3108.8,3108.5,2.80043047]
[1720655662268,0.05700709,3108.8,3108.6,2.80043047]
[1720655662470,0.05700709,3108.8,3108.4,1.77017357]
[1720655662637,0.05700709,3108.8,3108.5,3.63516133]
[1720655662841,5.4005,3109.2,3108.6,1.12016535]
[1720655663159,0.05682227,3109.1,3108.5,0.55]
[1720655663367,0.05682227,3109.1,3108.5,2.8361]
[1720655663557,0.05682227,3109.1,3108.6,0.836]
[1720655663753,0.05682227,3109.1,3108.6,1.27074118]
[1720655663983,5.4404,3109.4,3108.6,1.27074118]
[1720655664184,0.05679743,3109.0,3108.5,2.8361]
[1720655664359,3.0,3109.6,3108.9,0.836]
[1720655664558,3.0,3109.6,3109.1,0.836]
[1720655664755,3.0,3109.6,3109.0,0.55]
[1720655669183,2.4404,3109.7,3109.0,0.55]
[1720655671099,3.0,3109.8,3109.1,0.836]
[1720655671272,5.2893,3110.0,3109.1,1.21071]
[1720655671473,5.2893,3110.0,3109.2,0.55]
[1720655673793,0.05743864,3109.9,3109.2,0.55]
[1720655678186,0.05743864,3109.9,3108.9,3.1971]
[1720655678187,0.05743864,3109.9,3109.0,0.55]
[1720655678391,0.53467386,3109.8,3109.0,0.55]
[1720655678596,3.1253,3109.7,3108.7,3.1971]
[1720655678916,3.0,3109.6,3108.7,3.1971]
[1720655679071,0.05733962,3109.5,3108.7,3.1971]
[1720655679975,0.05733962,3109.5,3108.9,0.836]
[1720655680303,5.2893,3109.7,3108.9,0.836]
[1720655680511,0.64007223,3109.6,3108.9,0.836]
[1720655680674,3.64007223,3109.6,3108.9,0.836]
[1720655681672,3.64007223,3109.6,3109.0,2.3042]
[1720655683121,3.64007223,3109.6,3108.8,2.3042]
[1720655683290,3.64007223,3109.6,3108.9,0.55]
[1720655683478,1.01329463,3109.5,3108.9,0.55]
[1720655684018,0.05755797,3109.4,3108.9,0.55]
[1720655684668,2.3819,3109.3,3108.9,0.55]
[1720655684874,0.05712848,3109.2,3108.4,2.3042]
[1720655685129,0.836,3109.1,3108.2,0.836]
[1720655685415,0.05699959,3109.0,3108.2,0.836]
[1720655685616,0.32740996,3108.9,3108.2,0.836]
[1720655685929,0.05699116,3108.8,3108.2,0.836]
[1720655686500,0.05699116,3108.8,3108.3,0.55]
[1720655686698,0.05699116,3108.8,3108.2,0.836]
[1720655687016,2.362,3108.7,3108.0,0.836]
[1720655687228,0.24189912,3108.6,3108.0,0.836]
[1720655687528,0.29899564,3108.6,3108.0,0.836]
[1720655687884,0.24189912,3108.6,3108.0,0.836]
[1720655688888,0.05675284,3108.5,3108.0,0.836]
[1720655689317,2.362,3108.7,3108.0,0.836]
[1720655689626,2.630941,3108.7,3108.0,0.836]
[1720655690014,0.0567889,3108.6,3108.0,0.836]
[1720655695414,0.0567889,3108.6,3108.5,0.836]
[1720655695615,3.0,3109.1,3108.5,0.836]
[1720655695815,0.05680711,3108.6,3108.5,0.836]
[1720655696052,7.44,3109.2,3108.6,2.2906]
[1720655696345,0.05735843,3109.1,3108.6,2.2906]
[1720655696545,0.05735843,3109.1,3108.7,0.55]
[1720655696915,0.05735843,3109.1,3108.6,0.55]
[1720655698821,0.33678804,3109.0,3108.6,0.55]
[1720655699248,0.0573565,3108.9,3108.6,0.55]
[1720655699742,0.0573565,3108.9,3108.5,0.836]
[1720655700024,0.0573565,3108.9,3108.2,0.836]
[1720655700235,0.0573565,3108.9,3108.3,0.55]
[1720655701036,0.0573565,3108.9,3108.4,0.836]
[1720655701426,0.0573565,3108.9,3108.5,2.4383]
[1720655702967,0.0573565,3108.9,3108.8,0.836]
[1720655703136,0.0573565,3108.9,3108.8,1.386]
[1720655703465,0.0573565,3108.9,3108.8,1.5796]
[1720655705335,0.0573565,3108.9,3108.8,3.8327]
[1720655713049,0.0573565,3108.9,3108.8,2.9967]
[1720655713249,0.0573565,3108.9,3108.8,2.8031]
[1720655713646,0.0573565,3108.9,3108.8,0.55]
[1720655713849,0.0573565,3108.9,3108.7,0.55]
[1720655721724,0.0573565,3108.9,3108.3,0.67404357]
[1720655722017,2.4008,3108.8,3108.1,1.51004357]
[1720655722225,2.4008,3108.8,3108.3,0.836]
[1720655722386,0.05705018,3108.7,3108.3,0.836]
[1720655722723,2.73758804,3109.0,3108.4,1.12018976]
[1720655722919,0.05712229,3108.9,3108.4,1.12018976]
[1720655724524,0.05712229,3108.9,3108.3,0.836]
[1720655724705,0.05712229,3108.9,3108.4,0.55]
[1720655729029,0.05712229,3108.9,3108.5,0.836]
[1720655729222,0.05712229,3108.9,3108.6,0.55]
[1720655729798,0.05712229,3108.9,3108.5,0.836]
[1720655731829,2.4008,3109.0,3108.5,0.836]
[1720655735256,0.05746938,3108.9,3108.5,0.836]
[1720655736255,0.05746938,3108.9,3108.3,1.51004357]
[1720655736459,0.05746938,3108.9,3108.4,3.35044015]
[1720655736753,2.4008,3109.0,3108.5,1.12017606]
[1720655736952,2.4008,3109.0,3108.4,0.55]
[1720655737153,2.4008,3109.0,3108.5,1.12017349]
[1720655737322,2.4008,3109.0,3108.4,0.55]
[1720655737519,2.4008,3109.0,3108.5,1.120174]
[1720655737720,2.4008,3109.0,3108.6,1.1201428]
[1720655737949,2.4008,3109.0,3108.4,1.22404357]
[1720655738158,2.4008,3109.0,3108.5,2.80034222]
[1720655738330,2.4008,3109.0,3108.6,1.12016225]
[1720655738535,2.4008,3109.0,3108.4,1.22404357]
[1720655738850,2.4008,3109.0,3108.5,2.80041708]
[1720655739158,2.4008,3109.0,3108.4,0.55]
[1720655739318,2.4008,3109.0,3108.5,2.80043903]
[1720655739524,2.64088,3109.0,3108.4,0.55]
[1720655739725,0.0575142,3108.9,3108.5,1.12019697]
[1720655739932,0.0575142,3108.9,3108.4,0.55]
[1720655740150,0.836,3109.4,3108.4,0.55]
[1720655740151,2.3743,3108.8,3108.4,0.55]
[1720655740365,0.05744212,3108.7,3108.4,0.55]
[1720655740562,2.3743,3108.8,3108.4,0.55]
[1720655740729,0.23743,3108.7,3108.2,3.67404357]
[1720655740931,0.05743091,3108.7,3108.3,2.80060903]
[1720655741150,0.05743091,3108.7,3108.4,2.80060903]
[1720655741355,0.05743091,3108.7,3108.5,2.80060903]
[1720655741667,0.05743091,3108.7,3108.4,0.67404357]
[1720655741668,2.3743,3108.8,3108.6,1.12018869]
[1720655741871,2.3743,3108.8,3108.4,0.67404357]
[1720655742036,0.05737487,3108.7,3108.5,2.80047783]
[1720655742238,0.05737487,3108.7,3108.6,1.12019113]
[1720655742459,2.3743,3108.8,3108.6,1.12019113]
[1720655742636,2.3743,3108.8,3108.4,0.67404357]
[1720655742837,0.05735288,3108.7,3108.5,2.80044563]
[1720655743049,0.05735288,3108.7,3108.6,1.12017825]
[1720655743275,2.3743,3108.8,3108.6,1.12017825]
[1720655743579,0.05735288,3108.7,3108.4,0.67404357]
[1720655743746,2.3743,3108.8,3108.5,2.80048881]
[1720655743946,0.05735288,3108.7,3108.6,1.12019552]